Cogmind - Beta 14 @@@ ROGUE MODE // 2024.08.23 @ 09:52:11 Player: c05-3m Result: Escaped! Performance ------------- Evolutions (9) 4500 Regions Visited (23) 4600 Robots Destroyed (75) 375 Value Destroyed (2647) 2647 Prototype IDs (28) 560 Alien Tech Used (2) 400 Bonus (4800) 4800 TOTAL SCORE: 17882 Bonus ------- Met Zhirov 300 Met Warlord at Base 500 MAIN.C Attacked Warlord 500 Hacked Protovariant 500 Win 3000 Cogmind --------- Core Integrity 1024/1600 Matter 274/300 Energy 100/100 System Corruption 2% Temperature Cool (2) Movement Flying (40) Location To Epsilon Eridani Parts ------- > --- POWER (2) -------- (None) > --- PROPULSION (8) --- Centrium Leg Improved Diametric Drive > --- UTILITY (13) ----- Machine Analyzer Enhanced Optical Array Advanced Sensor Array Improved Signal Interpreter Advanced Transmission Jammer Advanced Hacking Suite Advanced Hacking Suite System Shield Advanced System Shield > --- WEAPON (3) ------- (None) > --- INVENTORY (5) ---- Faulty Compact Particle Reactor Advanced Transmission Jammer Authchip [Processor] Transdimensional Reconstructor Peak State ------------ > --- POWER ------------ Micro Antimatter Reactor Light Quantum Reactor > --- PROPULSION ------- Centrium Leg Cooled Nuclear Pulse Thruster Experimental Cesium-ion Thruster Diametric Drive Improved Diametric Drive Improved Diametric Drive Impulse Thruster Array > --- UTILITY ---------- Machine Analyzer Enhanced Optical Array Advanced Sensor Array Improved Signal Interpreter Advanced Transmission Jammer Advanced Reaction Control System Advanced Hacking Suite Advanced Hacking Suite System Shield Advanced System Shield > --- WEAPON ----------- Heavy Gauss Cannon > --- INVENTORY -------- Compact Particle Reactor Advanced Transmission Jammer Authchip [Processor] Transdimensional Reconstructor [Rating: 143] Favorites ----------- Power Light Nuclear Core Engine Improved Deuterium Engine Power Core Light Nuclear Core Reactor Micro Antimatter Reactor Propulsion Compact Wheel Treads Light Treads Leg Carbon-fiber Leg Wheel Compact Wheel Flight Unit Cooled Nuclear Pulse Thruster Utility Small Storage Unit Device Seismic Detector Storage Small Storage Unit Processor Improved Signal Interpreter Hackware System Shield Protection Experimental Propulsion Shielding Weapon Katana Energy Gun Improved Heavy Laser Ballistic Gun Autogun Ballistic Cannon Light Cannon Launcher Mini Grenade Launcher Slashing Weapon Katana Build | -11 -10 -10 -9 -8 -7 -7 -7 -7 -7 -5 -5 -5 -5 -4 -4 -4 -4 -4 -3 -3 -3 -2 -1 ------- Run | Yrd Mat Min Mat Mat Fac Was Fac Sto Rec Fac Upp Upp Zhi Pro Fac Upp Upp War Pro Res Tes Res Acc Slots Evolved 18 | . . . 2 2 2 . . . . 4 . . . . 2 . . . . 2 . 2 2 Power 1 | . . . . . . . . . . . . . . . . . . . . . . . 1 Propulsion 6 | . . . . 2 1 . . . . 1 . . . . 1 . . . . 1 . . . Utility 11 | . . . 2 . 1 . . . . 3 . . . . 1 . . . . 1 . 2 1 Weapon . | . . . . . . . . . . . . . . . . . . . . . . . . Parts Attached 145 | . 8 4 13 12 17 1 . 18 13 12 4 2 9 1 5 1 1 3 4 4 5 4 4 Power 17 | . 1 1 1 2 2 . . 2 1 . 1 . 1 . . . . . 1 . 2 . 2 Engine 6 | . . . 1 2 1 . . 1 1 . . . . . . . . . . . . . . Core 7 | . 1 1 . . 1 . . 1 . . 1 . 1 . . . . . 1 . . . . Reactor 4 | . . . . . . . . . . . . . . . . . . . . . 2 . 2 Propulsion 47 | . 3 . 4 4 7 1 . 6 9 4 . . 3 . 1 . . . . 1 . 3 1 Treads 14 | . . . 2 3 2 . . 3 4 . . . . . . . . . . . . . . Leg 4 | . 1 . . . . . . 1 . 1 . . . . . . . . . . . 1 . Wheel 12 | . 2 . 2 1 . . . 1 5 1 . . . . . . . . . . . . . Hover . | . . . . . . . . . . . . . . . . . . . . . . . . Flight 17 | . . . . . 5 1 . 1 . 2 . . 3 . 1 . . . . 1 . 2 1 Utility 42 | . 1 . 4 2 5 . . 4 1 7 1 . 5 . 4 . . 3 1 2 1 1 . Device 17 | . . . 1 . 1 . . 2 . 4 . . 3 . 2 . . 1 . 2 . 1 . Storage 3 | . 1 . . . 1 . . . . . . . 1 . . . . . . . . . . Processor 7 | . . . 1 2 . . . 1 1 1 1 . . . . . . . . . . . . Hackware 6 | . . . . . 3 . . . . 1 . . . . 1 . . . . . 1 . . Protection 9 | . . . 2 . . . . 1 . 1 . . 1 . 1 . . 2 1 . . . . Artifact . | . . . . . . . . . . . . . . . . . . . . . . . . Weapon 39 | . 3 3 4 4 3 . . 6 2 1 2 2 . 1 . 1 1 . 2 1 2 . 1 Energy Gun 4 | . 2 . . . . . . 1 1 . . . . . . . . . . . . . . Energy Cannon . | . . . . . . . . . . . . . . . . . . . . . . . . Ballistic Gun 10 | . . . 3 3 1 . . 2 . . 1 . . . . . . . . . . . . Ballistic Cannon 8 | . . 1 . . . . . 1 . . . . . . . . 1 . 1 1 2 . 1 Launcher 8 | . 1 1 1 . 1 . . 1 . . 1 . . 1 . . . . 1 . . . . Special Weapon . | . . . . . . . . . . . . . . . . . . . . . . . . Impact Weapon . | . . . . . . . . . . . . . . . . . . . . . . . . Slashing Weapon 9 | . . 1 . 1 1 . . 1 1 1 . 2 . . . 1 . . . . . . . Piercing Weapon . | . . . . . . . . . . . . . . . . . . . . . . . . Special Melee Weapon . | . . . . . . . . . . . . . . . . . . . . . . . . Unidentified Prototypes 12 | . . . . . . 1 . 1 . . . . 5 . . . . 2 . . 1 1 1 Parts Lost 67 | . 2 3 7 1 8 . . 14 1 8 1 1 . 1 . 1 . . 8 . . 1 10 Power 15 | . . 1 1 1 2 . . 3 . . 1 1 . . . . . . 2 . . . 3 Propulsion 29 | . . 1 1 . 5 . . 8 . 6 . . . . . . . . 3 . . . 5 Utility 11 | . . . 2 . . . . 2 1 2 . . . 1 . . . . 1 . . 1 1 Weapon 12 | . 2 1 3 . 1 . . 1 . . . . . . . 1 . . 2 . . . 1 Highest Loss Streak 7 | . 1 3 3 1 5 . . 5 1 7 1 1 . 1 . 1 . . 6 . . 1 5 To Critical Strikes . | . . . . . . . . . . . . . . . . . . . . . . . . Average Slot Usage (%) 81 | . 75 57 81 99 93 84 92 69 93 78 71 80 79 91 90 91 89 85 80 47 59 74 66 Engine 2 | . 2 . 3 8 6 7 7 3 2 5 2 . . . . . . . . . . . . Core 3 | . 11 13 3 . . . . 1 . . 2 4 1 5 5 5 5 5 1 . . . . Treads 8 | . . . 4 27 19 . . 6 23 8 . . . . . . . . . . . . . Leg 2 | . 22 . . . . . . 1 . 2 5 5 4 . . . . . . . . 3 3 Wheel 5 | . 5 15 15 9 5 . . 1 12 6 . . . . . . . . . . . . . Flight 8 | . . . . . 8 30 38 7 . 1 11 11 13 29 27 31 31 30 28 11 13 20 19 Device 4 | . . . 6 9 6 7 7 . . 7 5 5 4 2 5 5 5 5 4 4 9 12 8 Storage 7 | . 14 14 11 9 7 7 7 7 7 5 5 5 5 5 5 5 5 5 5 4 4 4 . Processor 11 | . . . 6 17 17 . . . 11 14 18 23 22 17 15 15 15 15 15 13 13 12 11 Hackware 9 | . . . . . 5 23 23 23 18 8 11 11 11 11 13 15 15 15 15 13 18 16 15 Protection 1 | . . . 8 . . . . 1 . 4 . . . 5 7 5 5 5 3 . . . . Energy Gun 2 | . 15 1 . . . . . 2 6 2 . . . . . . . . . . . . . Ballistic Gun 3 | . . . 11 17 10 . . 4 . . . . . . . . . . . . . . . Launcher 1 | . 3 . 4 . . . . . . . 2 . . 4 5 4 . . 1 . . . . Slashing Weapon 3 | . . 4 4 . 1 7 7 1 6 4 2 9 11 6 5 2 5 5 4 . . . . Peak Build Rating 143 | . 8 8 12 19 32 33 33 33 46 59 59 63 92 87 98 99 105 101 100 79 89 121 143 Average Rating 43 | . 7 6 10 15 22 27 33 26 40 46 56 61 65 83 92 97 99 98 90 61 81 120 122 On Entrance 53 | 6 6 7 8 8 19 26 33 33 24 46 56 58 60 87 82 98 99 99 98 46 73 89 120 Naked Turns . | . . . . . . . . . . . . . . . . . . . . . . . . Heaviest Build 95 | 12 87 90 95 92 90 13 13 29 22 34 18 16 33 33 36 31 31 31 31 7 19 18 40 Greatest Support 112 | 20 32 32 32 16 21 17 17 40 112 32 18 18 36 36 42 51 42 51 51 27 27 30 51 Greatest Overweight (x) 27 | . 2 5 5 5 27 . . 2 1 2 . . 2 . . . . . . . . . . Average Overweight (x) . | . . 4 4 5 1 . . . . . . . . . . . . . . . . . . Largest Inventory Capacity 25 | . 25 25 25 25 25 8 8 8 8 8 8 8 8 8 8 8 8 8 8 8 8 8 5 Average Capacity 13 | . 11 25 25 25 21 8 8 8 8 8 8 8 8 8 8 8 8 8 8 8 8 7 5 Most Carried 25 | . 8 8 17 20 25 8 8 8 8 8 8 8 8 8 8 8 8 8 8 7 8 7 5 Average Carried 9 | . 7 6 13 16 18 8 8 7 7 6 7 7 7 8 7 7 7 7 7 6 7 5 4 Final Capacity 25 | 8 25 25 25 25 8 8 8 8 8 8 8 8 8 8 8 8 8 8 8 8 8 5 5 Final Carried 19 | 6 6 8 17 19 8 8 8 8 8 7 8 8 8 8 8 8 8 8 7 6 8 5 4 Class Distribution -------------------- 32% | Hacker-Scout 24% | Scavenger-Mutant 19% | Hacker-Mutant 14% | Mutant 5% | Hacker-Sprinter Dominant Class ---------------- Mutant | -10/Materials Mutant | -10/Mines Scavenger-Mutant | -9/Materials Scavenger-Mutant | -8/Materials Scavenger-Mutant | -7/Factory Hacker-Sprinter | -7/Waste Hacker-Sprinter | -7/Factory Hacker-Mutant | -7/Storage Hacker-Mutant | -7/Recycling Hacker-Mutant | -5/Factory Hacker-Scout | -5/Upper Caves Hacker-Scout | -5/Upper Caves Hacker-Assassin | -5/Zhirov Hacker-Sprinter | -4/Proximity Caves Hacker-Scout | -4/Factory Hacker-Scout | -4/Upper Caves Hacker-Scout | -4/Upper Caves Hacker-Scout | -4/Warlord Hacker-Scout | -3/Proximity Caves Hacker-Sprinter | -3/Research Hacker-Scout | -3/Testing Hacker-Scout | -2/Research Hacker-Scout | -1/Access Resources | -11 -10 -10 -9 -8 -7 -7 -7 -7 -7 -5 -5 -5 -5 -4 -4 -4 -4 -4 -3 -3 -3 -2 -1 ----------- Run | Yrd Mat Min Mat Mat Fac Was Fac Sto Rec Fac Upp Upp Zhi Pro Fac Upp Upp War Pro Res Tes Res Acc Matter Collected 2527 | 190 75 134 227 248 253 . . 351 156 35 123 47 30 31 61 78 17 . 162 . . . 309 Remotely . | . . . . . . . . . . . . . . . . . . . . . . . . Salvage Created 2876 | . 247 71 546 386 191 . . 382 126 133 97 99 295 61 . . . . 214 . . . 28 Parts 165 | . 17 3 43 29 16 . . 16 8 5 6 1 2 7 . . . . 10 . . . 2 Haulers Intercepted . | . . . . . . . . . . . . . . . . . . . . . . . . Recyclers Shooed . | . . . . . . . . . . . . . . . . . . . . . . . . Parts Field Recycled . | . . . . . . . . . . . . . . . . . . . . . . . . Retrieved Matter . | . . . . . . . . . . . . . . . . . . . . . . . . Parts Self-Destructed 11 | . . . . . . . . . . . 5 . . 2 . 1 . . 3 . . . . Prevented 1 | . . . . . . . . . . . 1 . . . . . . . . . . . . Kills | -11 -10 -10 -9 -8 -7 -7 -7 -7 -7 -5 -5 -5 -5 -4 -4 -4 -4 -4 -3 -3 -3 -2 -1 ------- Run | Yrd Mat Min Mat Mat Fac Was Fac Sto Rec Fac Upp Upp Zhi Pro Fac Upp Upp War Pro Res Tes Res Acc Combat Hostiles Destroyed 65 | . 7 2 13 6 5 . . 10 2 2 6 . . 4 . . . . 6 . . . 2 Melee 7 | . . . 4 . . . . 1 . 2 . . . . . . . . . . . . . Guns 23 | . 3 . 6 6 1 . . 5 2 . . . . . . . . . . . . . . Cannons 3 | . . . . . . . . 1 . . . . . . . . . . . . . . 2 AOE 31 | . 3 2 3 . 4 . . 3 . . 6 . . 4 . . . . 6 . . . . Classes Destroyed 13 | . 4 . 2 3 . . . . . . . 1 . 1 . . . . 1 . . . 1 Worker 2 | . . . . 1 . . . . . 1 . . . . . . . . . . . . . Builder 2 | . . . . 2 . . . . . . . . . . . . . . . . . . . Recycler 2 | . . . 1 . 1 . . . . . . . . . . . . . . . . . . Minesweeper 1 | . . . . . . . . . . . . . . 1 . . . . . . . . . Operator 1 | . 1 . . . . . . . . . . . . . . . . . . . . . . Drone 1 | . . . . . . . . . . . . . . . . . . . . . . . 1 Watcher 3 | . 1 . 1 1 . . . . . . . . . . . . . . . . . . . Swarmer 25 | . 3 . 4 . 4 . . . . . 5 . . 4 . . . . 4 . . . 1 Grunt 27 | . 4 2 5 5 1 . . 7 . 2 1 . . . . . . . . . . . . Duelist 1 | . . . . 1 . . . . . . . . . . . . . . . . . . . Sentry 9 | . . . 4 . . . . 3 2 . . . . . . . . . . . . . . Programmer 2 | . . . . . . . . . . . . . . . . . . . 2 . . . . Samaritan 4 | . . . . . . . . . . . . 2 . . . . . . 2 . . . . Best Kill Streak 7 | . 3 2 4 7 4 . . 5 1 1 5 . . 4 . . . . 6 . . . 1 Combat Bots Only 6 | . 3 2 4 3 4 . . 5 1 1 5 . . 4 . . . . 6 . . . 1 Max Kills in Single Turn 4 | . 2 2 3 1 4 . . 2 1 1 3 1 . 2 . . . . 3 . . . 1 Gunslinging . | . . . . . . . . . . . . . . . . . . . . . . . . Exploded 4 | . 2 2 3 . 4 . . 2 . . 3 . . 2 . . . . 3 . . . . Melee 1 | . . . 1 . . . . 1 . 1 . . . . . . . . . . . . . Uniques/NPCs Destroyed . | . . . . . . . . . . . . . . . . . . . . . . . . Combat | -11 -10 -10 -9 -8 -7 -7 -7 -7 -7 -5 -5 -5 -5 -4 -4 -4 -4 -4 -3 -3 -3 -2 -1 -------- Run | Yrd Mat Min Mat Mat Fac Was Fac Sto Rec Fac Upp Upp Zhi Pro Fac Upp Upp War Pro Res Tes Res Acc Hostile Shots Fired 858 | . 33 14 62 36 74 . 1 208 45 50 32 9 . 18 . 8 3 . 53 . 4 4 204 Missed 349 | . 7 2 18 12 26 . 1 76 19 10 16 5 . 12 . 6 2 . 22 . 2 2 111 Damage Taken 7886 | . 379 191 558 401 737 . . 1394 202 605 245 81 . 118 . 43 27 . 866 . 51 56 1932 Core 1791 | . 43 84 61 65 183 . . 293 18 97 52 . . 59 . . . . 236 . 24 . 576 Absorbed by Shields 192 | . . . . . . . . . . 192 . . . . . . . . . . . . . Redirected to Shielding 265 | . . . . . . . . . . . . . . 16 . 19 . . 230 . . . . Regen/Repaired (Parts) 20 | . . . . . . . . 20 . . . . . . . . . . . . . . . Core Remaining (%) 77 | 100 . 49 84 88 . . . . 29 . . . . 79 . . . . 79 . 98 100 64 Volleys Fired 198 | . 34 7 22 27 11 . . 33 7 2 7 . . 4 . . 1 . 15 4 3 . 21 Largest 2 | . 2 1 2 2 2 . . 2 1 1 2 . . 1 . . 1 . 1 1 1 . 1 Hottest 93 | . 80 50 46 46 46 . . 93 65 65 58 . . 30 . . 61 . 61 61 61 . 61 Shots Fired 267 | . 38 7 29 54 20 . . 55 7 2 8 . . 4 . . 1 . 15 4 2 . 21 Gun 201 | . 36 6 28 54 19 . . 47 7 2 2 . . . . . . . . . . . . Cannon 35 | . . . . . . . . 6 . . . . . . . . 1 . 1 4 2 . 21 Launcher 31 | . 2 1 1 . 1 . . 2 . . 6 . . 4 . . . . 14 . . . . Special . | . . . . . . . . . . . . . . . . . . . . . . . . Kinetic 169 | . . . 28 54 19 . . 37 . . 2 . . . . . 1 . 1 4 2 . 21 Thermal 42 | . 11 6 . . . . . 16 7 2 . . . . . . . . . . . . . Explosive 31 | . 2 1 1 . 1 . . 2 . . 6 . . 4 . . . . 14 . . . . Electromagnetic 25 | . 25 . . . . . . . . . . . . . . . . . . . . . . Robot Hit Streak 28 | . 8 4 14 13 10 . . 17 24 26 28 . . 1 . . . . 3 . . . 1 Robot Miss Streak 4 | . 3 1 1 2 1 . . 4 . . 3 . . 1 . . . . 2 . . . 4 Penetration Max . | . . . . . . . . . . . . . . . . . . . . . . . . Secondary Targets 3 | . . . . 2 . . . 1 . . . . . . . . . . . . . . . Max Gunslinging Chain 1 | . . . . 1 . . . 1 . . . . . . . . . . . . . . . Shots Hit Robots 235 | . 26 7 35 42 16 . . 55 7 15 1 4 12 2 . . . . 12 . . . 1 Core Hits 154 | . 13 4 17 18 10 . . 45 4 6 10 1 3 6 . . . . 14 . . . 3 Critical Kills . | . . . . . . . . . . . . . . . . . . . . . . . . Critical Parts Destroyed 1 | . . . . 1 . . . . . . . . . . . . . . . . . . . Critical Strikes 13 | . 1 1 . 1 . . . 3 2 2 . . . . . . . . . . . . 3 Burn 3 | . . 1 . . . . . . 2 . . . . . . . . . . . . . . Destroy 1 | . . . . 1 . . . . . . . . . . . . . . . . . . . Blast 5 | . . . . . . . . 2 . . . . . . . . . . . . . . 3 Corrupt 1 | . 1 . . . . . . . . . . . . . . . . . . . . . . Sever 3 | . . . . . . . . 1 . 2 . . . . . . . . . . . . . Melee Attacks 80 | . . 3 13 2 . . . 12 . 22 . 4 12 1 1 2 1 . 7 . . . . Impact . | . . . . . . . . . . . . . . . . . . . . . . . . Slashing 80 | . . 3 13 2 . . . 12 . 22 . 4 12 1 1 2 1 . 7 . . . . Piercing . | . . . . . . . . . . . . . . . . . . . . . . . . Sneak Attacks 14 | . . 3 1 . . . . . . 1 . 4 . 1 . . . . 4 . . . . Combat Hostiles . | . . . . . . . . . . . . . . . . . . . . . . . . Follow-up Attacks 1 | . . . . . . . . . . . . . 1 . . . . . . . . . . Damage Inflicted 7955 | . 534 279 683 642 443 . . 1489 176 471 416 267 775 526 . . . . 1090 . . . 164 Guns 2941 | . 363 73 378 642 230 . . 980 176 54 45 . . . . . . . . . . . . Cannons 331 | . . . . . . . . 167 . . . . . . . . . . . . . . 164 Explosions 2331 | . 171 71 91 . 213 . . 193 . . 371 . . 453 . . . . 768 . . . . Melee 2352 | . . 135 214 . . . . 149 . 417 . 267 775 73 . . . . 322 . . . . Ramming . | . . . . . . . . . . . . . . . . . . . . . . . . Kinetic 2246 | . . . 378 642 230 . . 787 . . 45 . . . . . . . . . . . 164 Thermal 773 | . 110 73 . . . . . 360 176 54 . . . . . . . . . . . . . Explosive 2308 | . 148 71 91 . 213 . . 193 . . 371 . . 453 . . . . 768 . . . . Electromagnetic 276 | . 276 . . . . . . . . . . . . . . . . . . . . . . Impact . | . . . . . . . . . . . . . . . . . . . . . . . . Slashing 2352 | . . 135 214 . . . . 149 . 417 . 267 775 73 . . . . 322 . . . . Piercing . | . . . . . . . . . . . . . . . . . . . . . . . . Highest Corruption 5 | . . . . . . . . . . . . . . . . . . . 4 . 5 . 2 Average Corruption 3 | . . . . . . . . . . . . . . . . . . . 3 . 5 . 1 Corruption Purged . | . . . . . . . . . . . . . . . . . . . . . . . . Corruption Blocked 1 | . . . . . . . . . . 1 . . . . . . . . . . . . . Effects 8 | . . . . . . . . . . . . . . . . . . . 2 . 5 . 1 Message Errors 1 | . . . . . . . . . . . . . . . . . . . . . 1 . . Matter Fused 1 | . . . . . . . . . . . . . . . . . . . . . 1 . . Parts Rejected 2 | . . . . . . . . . . . . . . . . . . . 2 . . . . Data Loss (minor) 3 | . . . . . . . . . . . . . . . . . . . . . 2 . 1 Weapon Failures 1 | . . . . . . . . . . . . . . . . . . . . . 1 . . Overload Shots . | . . . . . . . . . . . . . . . . . . . . . . . . Overflow Damage 563 | . . 51 . . . . . . . 23 . 115 82 16 . . . . 276 . . . . Projectiles . | . . . . . . . . . . . . . . . . . . . . . . . . Explosions 63 | . . 26 . . . . . . . . . . . 16 . . . . 21 . . . . Melee 500 | . . 25 . . . . . . . 23 . 115 82 . . . . . 255 . . . . Knockbacks 1 | . . . . . . . . . . . . . . . . . . . . . . . 1 Impact . | . . . . . . . . . . . . . . . . . . . . . . . . Kinetic 1 | . . . . . . . . . . . . . . . . . . . . . . . 1 Secondary . | . . . . . . . . . . . . . . . . . . . . . . . . Self-Inflicted Damage 111 | . 64 31 . . 16 . . . . . . . . . . . . . . . . . . Shots 4 | . 2 1 . . 1 . . . . . . . . . . . . . . . . . . Rammed . | . . . . . . . . . . . . . . . . . . . . . . . . Targets Rammed . | . . . . . . . . . . . . . . . . . . . . . . . . Kicked . | . . . . . . . . . . . . . . . . . . . . . . . . Crushed . | . . . . . . . . . . . . . . . . . . . . . . . . Highest Temperature 277 | . 277 153 10 24 12 . . 171 16 2 . . . 12 . 64 . 76 2 . . . 17 Average Temperature 67 | . 103 80 10 5 7 . . 61 8 1 . . . 12 . 36 . 44 2 . . . 7 Received Heat Transfer 1986 | . 192 93 219 234 111 . . 612 60 264 18 12 . 36 . . 9 . 60 . 9 9 48 Siege Activations . | . . . . . . . . . . . . . . . . . . . . . . . . Robots Corrupted 1 | . 1 . . . . . . . . . . . . . . . . . . . . . . Combat Hostiles 1 | . 1 . . . . . . . . . . . . . . . . . . . . . . Parts Fried 2 | . 2 . . . . . . . . . . . . . . . . . . . . . . Impact Corruptions . | . . . . . . . . . . . . . . . . . . . . . . . . Robots Melted . | . . . . . . . . . . . . . . . . . . . . . . . . Combat Hostiles . | . . . . . . . . . . . . . . . . . . . . . . . . Parts Melted 3 | . 2 1 . . . . . . . . . . . . . . . . . . . . . Heat Transferred 1604 | . 309 296 . . . . . 518 407 74 . . . . . . . . . . . . . Parts Sabotaged . | . . . . . . . . . . . . . . . . . . . . . . . . Parts Stolen . | . . . . . . . . . . . . . . . . . . . . . . . . Parts Stripped . | . . . . . . . . . . . . . . . . . . . . . . . . Power Chain Reactions 1 | . 1 . . . . . . . . . . . . . . . . . . . . . . Alert | -11 -10 -10 -9 -8 -7 -7 -7 -7 -7 -5 -5 -5 -5 -4 -4 -4 -4 -4 -3 -3 -3 -2 -1 ------- Run | Yrd Mat Min Mat Mat Fac Was Fac Sto Rec Fac Upp Upp Zhi Pro Fac Upp Upp War Pro Res Tes Res Acc Peak Influence 456 | . 312 74 353 231 186 56 114 379 202 84 . . . . 88 . . . . 116 197 185 456 Initial 147 | . . 43 28 25 . 56 39 51 147 . . . . . 72 . . . . 97 65 110 104 Average 118 | . 182 70 136 90 51 56 65 225 106 26 . . . . 80 . . . . 99 113 144 250 Maximum Alert Level 2 | . 1 . 1 1 . . . 1 1 . . . . . . . . . . . . . 2 Low Security (%) 76 | . 44 100 71 81 100 100 100 25 85 100 . . . . 100 . . . . 100 100 100 32 Level 1 22 | . 55 . 28 18 . . . 74 14 . . . . . . . . . . . . . 49 Level 2 1 | . . . . . . . . . . . . . . . . . . . . . . . 17 Level 3 . | . . . . . . . . . . . . . . . . . . . . . . . . Level 4 . | . . . . . . . . . . . . . . . . . . . . . . . . Level 5 . | . . . . . . . . . . . . . . . . . . . . . . . . High Security . | . . . . . . . . . . . . . . . . . . . . . . . . Max Security . | . . . . . . . . . . . . . . . . . . . . . . . . Squads Dispatched 16 | . . . 4 1 . . . 4 . 2 . . . . . . 1 . . . 2 . 2 Investigation 3 | . . . 3 . . . . . . . . . . . . . . . . . . . . Extermination 2 | . . . . . . . . . . 1 . . . . . . . . . . . . 1 Reinforcement 8 | . . . 1 1 . . . 3 . 1 . . . . . . . . . . 1 . 1 Assault 2 | . . . . . . . . . . . . . . . . . 1 . . . 1 . . Garrison 1 | . . . . . . . . 1 . . . . . . . . . . . . . . . Intercept . | . . . . . . . . . . . . . . . . . . . . . . . . Searches Triggered 1 | . . . . . . . . . . . . . . . . . . . . . . . 1 Construction Impeded 1 | . . . . . . . . 1 . . . . . . . . . . . . . . . Haulers Reinforced . | . . . . . . . . . . . . . . . . . . . . . . . . Active Scanning Responses . | . . . . . . . . . . . . . . . . . . . . . . . . Cargo Convoy Interrupts . | . . . . . . . . . . . . . . . . . . . . . . . . Stealth | -11 -10 -10 -9 -8 -7 -7 -7 -7 -7 -5 -5 -5 -5 -4 -4 -4 -4 -4 -3 -3 -3 -2 -1 --------- Run | Yrd Mat Min Mat Mat Fac Was Fac Sto Rec Fac Upp Upp Zhi Pro Fac Upp Upp War Pro Res Tes Res Acc Distress Signals 15 | . 1 . 4 . 2 . . 2 . . . . . . . . . . 3 1 1 . 1 Communications Jammed 16 | . . . . . . . . . . . . . . . . . . . . . . 9 7 Distress Signals 9 | . . . . . . . . . . . . . . . . . . . . . . 9 . Times Spotted 202 | . 12 2 25 12 18 4 5 15 2 9 11 1 . 8 . 2 5 4 21 3 5 3 35 Peak Tracking Total 17 | . 3 2 6 4 7 4 4 5 1 3 6 1 . 5 . 2 7 6 8 4 5 3 17 Tactical Retreats 28 | . 1 . 1 . 5 . 1 1 . 3 2 . . 1 . . 4 . 2 . 1 . 6 Traps | -11 -10 -10 -9 -8 -7 -7 -7 -7 -7 -5 -5 -5 -5 -4 -4 -4 -4 -4 -3 -3 -3 -2 -1 ------- Run | Yrd Mat Min Mat Mat Fac Was Fac Sto Rec Fac Upp Upp Zhi Pro Fac Upp Upp War Pro Res Tes Res Acc Traps Triggered 6 | . . . 2 . 3 . . . . 1 . . . . . . . . . . . . . Indirectly . | . . . . . . . . . . . . . . . . . . . . . . . . Trap Hack Attempts . | . . . . . . . . . . . . . . . . . . . . . . . . Triggered . | . . . . . . . . . . . . . . . . . . . . . . . . Disarmed . | . . . . . . . . . . . . . . . . . . . . . . . . Reprogrammed . | . . . . . . . . . . . . . . . . . . . . . . . . Reused . | . . . . . . . . . . . . . . . . . . . . . . . . Traps Extracted . | . . . . . . . . . . . . . . . . . . . . . . . . Installed 1 | . . . . . . . . . . . . . . 1 . . . . . . . . . Triggered 3 | . . . . . . . . . . . 1 . . . . . . 2 . . . . . Machines | -11 -10 -10 -9 -8 -7 -7 -7 -7 -7 -5 -5 -5 -5 -4 -4 -4 -4 -4 -3 -3 -3 -2 -1 ---------- Run | Yrd Mat Min Mat Mat Fac Was Fac Sto Rec Fac Upp Upp Zhi Pro Fac Upp Upp War Pro Res Tes Res Acc Machines Disabled 5 | . . . . 2 . . . 1 . . . . . . . . . . . . . . 2 Max in Single Turn 1 | . . . . 1 . . . 1 . . . . . . . . . . . . . . 1 Garrison Access 1 | . . . . 1 . . . . . . . . . . . . . . . . . . . Energy Cycler 1 | . . . . . . . . . . . . . . . . . . . . . . . 1 Machines Repaired . | . . . . . . . . . . . . . . . . . . . . . . . . Machines Dismantled . | . . . . . . . . . . . . . . . . . . . . . . . . Machines Sabotaged . | . . . . . . . . . . . . . . . . . . . . . . . . Overloaded Fab Kills . | . . . . . . . . . . . . . . . . . . . . . . . . Hacking | -11 -10 -10 -9 -8 -7 -7 -7 -7 -7 -5 -5 -5 -5 -4 -4 -4 -4 -4 -3 -3 -3 -2 -1 --------- Run | Yrd Mat Min Mat Mat Fac Was Fac Sto Rec Fac Upp Upp Zhi Pro Fac Upp Upp War Pro Res Tes Res Acc Machines Accessed 56 | . 3 . 3 4 3 . 1 3 11 1 . 1 7 . 4 . . 2 . . 3 4 6 Terminals 35 | . 3 . 3 3 2 . 1 2 6 1 . . . . 2 . . . . . 3 3 6 Fabricators 1 | . . . . . 1 . . . . . . . . . . . . . . . . . . Repair Stations 2 | . . . . . . . . 1 . . . . . . 1 . . . . . . . . Recycling Units 7 | . . . . . . . . . 5 . . . . . 1 . . . . . . 1 . Scanalyzers . | . . . . . . . . . . . . . . . . . . . . . . . . Garrison Access 1 | . . . . 1 . . . . . . . . . . . . . . . . . . . Total Hacks 188 | . 10 . 8 12 6 . 2 6 33 1 . 1 46 . 24 . . 2 . . 12 9 16 Successful 127 | . 4 . 3 7 2 . . 4 23 . . 1 46 . 16 . . 2 . . 7 6 6 Failed 61 | . 6 . 5 5 4 . 2 2 10 1 . . . . 8 . . . . . 5 3 10 Catastrophic 7 | . . . 1 . . . . 1 . . . . . . 2 . . . . . . 2 1 Database Lockouts . | . . . . . . . . . . . . . . . . . . . . . . . . Manual 70 | . 1 . 8 6 5 . 2 3 10 1 . . . . 15 . . . . . 4 8 7 Terminals 122 | . 10 . 8 10 5 . 2 3 25 1 . . . . 22 . . . . . 12 8 16 Fabricators 1 | . . . . . 1 . . . . . . . . . . . . . . . . . . Repair Stations 4 | . . . . . . . . 3 . . . . . . 1 . . . . . . . . Recycling Units 10 | . . . . . . . . . 8 . . . . . 1 . . . . . . 1 . Scanalyzers . | . . . . . . . . . . . . . . . . . . . . . . . . Garrison Access 2 | . . . . 2 . . . . . . . . . . . . . . . . . . . Terminal Hacks 95 | . 3 . 1 4 . . . 2 14 . . 1 46 . 12 . . 2 . . 5 2 3 Record 46 | . . . . . . . . . . . . . 34 . 10 . . . . . . 1 1 Part Schematic 6 | . . . . . . . . . 2 . . . 4 . . . . . . . . . . Robot Analysis 9 | . 1 . . . . . . . 4 . . . 4 . . . . . . . . . . Prototype ID Bank 8 | . . . . . . . . . 3 . . . 4 . . . . . . . 1 . . Open Door 4 | . . . . . . . . 1 . . . 1 . . . . . 2 . . . . . Level Access Points 1 | . . . . . . . . . . . . . . . . . . . . . 1 . . Branch Access Points 2 | . . . . . . . . 1 . . . . . . . . . . . . . . 1 Terminal Index 4 | . . . . 1 . . . . . . . . . . 1 . . . . . 1 1 . Recycling Unit Index 1 | . . . . . . . . . 1 . . . . . . . . . . . . . . Alert Level 4 | . 1 . . 1 . . . . 2 . . . . . . . . . . . . . . Unreport Threat 5 | . . . 1 1 . . . . 2 . . . . . . . . . . . . . 1 Locate Traps 2 | . 1 . . . . . . . . . . . . . . . . . . . 1 . . Zone Layout 2 | . . . . 1 . . . . . . . . . . 1 . . . . . . . . Protovariant Controls 1 | . . . . . . . . . . . . . . . . . . . . . 1 . . Fabricator Hacks 1 | . . . . . 1 . . . . . . . . . . . . . . . . . . Network Status 1 | . . . . . 1 . . . . . . . . . . . . . . . . . . Repair Station Hacks 2 | . . . . . . . . 2 . . . . . . . . . . . . . . . Scan Component 1 | . . . . . . . . 1 . . . . . . . . . . . . . . . Repair 1 | . . . . . . . . 1 . . . . . . . . . . . . . . . Recycling Unit Hacks 6 | . . . . . . . . . 6 . . . . . . . . . . . . . . Report Inventory 5 | . . . . . . . . . 5 . . . . . . . . . . . . . . Retrieve Components 1 | . . . . . . . . . 1 . . . . . . . . . . . . . . Scanalyzer . | . . . . . . . . . . . . . . . . . . . . . . . . Garrison Access Hacks 1 | . . . . 1 . . . . . . . . . . . . . . . . . . . Seal Access 1 | . . . . 1 . . . . . . . . . . . . . . . . . . . Unauthorized Hacks 22 | . 1 . 2 2 1 . . . 3 . . . . . 4 . . . . . 2 4 3 Terminals 18 | . 1 . 2 2 1 . . . 2 . . . . . 2 . . . . . 2 3 3 Assimilate 2 | . . . . . . . . . . . . . . . . . . . . . . . 2 Botnet 15 | . 1 . 2 2 1 . . . 2 . . . . . 1 . . . . . 2 3 1 Operators 1 | . . . . . . . . . . . . . . . 1 . . . . . . . . Fabricators . | . . . . . . . . . . . . . . . . . . . . . . . . Repair Stations 1 | . . . . . . . . . . . . . . . 1 . . . . . . . . Mechanics 1 | . . . . . . . . . . . . . . . 1 . . . . . . . . Recycling Units 3 | . . . . . . . . . 1 . . . . . 1 . . . . . . 1 . Recyclers 3 | . . . . . . . . . 1 . . . . . 1 . . . . . . 1 . Scanalyzers . | . . . . . . . . . . . . . . . . . . . . . . . . Garrison Access . | . . . . . . . . . . . . . . . . . . . . . . . . Data Cores Recovered 1 | . 1 . . . . . . . . . . . . . . . . . . . . . . Used . | . . . . . . . . . . . . . . . . . . . . . . . . Hacking Detections 36 | . 3 . 3 4 2 . 1 1 5 1 . . . . 3 . . . . . 3 4 6 Full Trace Events 1 | . . . 1 . . . . . . . . . . . . . . . . . . . . Feedback Events . | . . . . . . . . . . . . . . . . . . . . . . . . Feedback Blocked . | . . . . . . . . . . . . . . . . . . . . . . . . Robot Schematics Acquired . | . . . . . . . . . . . . . . . . . . . . . . . . Robots Built . | . . . . . . . . . . . . . . . . . . . . . . . . Authchips . | . . . . . . . . . . . . . . . . . . . . . . . . Time . | . . . . . . . . . . . . . . . . . . . . . . . . Total Robot Build Rating . | . . . . . . . . . . . . . . . . . . . . . . . . Part Schematics Acquired 6 | . . . . . . . . . 2 . . . 4 . . . . . . . . . . Parts Built . | . . . . . . . . . . . . . . . . . . . . . . . . Authchips . | . . . . . . . . . . . . . . . . . . . . . . . . Time . | . . . . . . . . . . . . . . . . . . . . . . . . Total Part Build Rating . | . . . . . . . . . . . . . . . . . . . . . . . . Parts Repaired 1 | . . . . . . . . 1 . . . . . . . . . . . . . . . Time 56 | . . . . . . . . 56 . . . . . . . . . . . . . . . Parts Recycled . | . . . . . . . . . . . . . . . . . . . . . . . . Recycled Matter . | . . . . . . . . . . . . . . . . . . . . . . . . Retrieved Matter . | . . . . . . . . . . . . . . . . . . . . . . . . Retrieved Components 6 | . . . . . . . . . 6 . . . . . . . . . . . . . . Parts Scanalyzed . | . . . . . . . . . . . . . . . . . . . . . . . . Part Schematics Acquired . | . . . . . . . . . . . . . . . . . . . . . . . . Parts Damaged . | . . . . . . . . . . . . . . . . . . . . . . . . Bothacking | -11 -10 -10 -9 -8 -7 -7 -7 -7 -7 -5 -5 -5 -5 -4 -4 -4 -4 -4 -3 -3 -3 -2 -1 ------------ Run | Yrd Mat Min Mat Mat Fac Was Fac Sto Rec Fac Upp Upp Zhi Pro Fac Upp Upp War Pro Res Tes Res Acc Used RIF Installer . | . . . . . . . . . . . . . . . . . . . . . . . . Robots Hacked . | . . . . . . . . . . . . . . . . . . . . . . . . Non-combat . | . . . . . . . . . . . . . . . . . . . . . . . . Combat . | . . . . . . . . . . . . . . . . . . . . . . . . Robot Hacks Applied . | . . . . . . . . . . . . . . . . . . . . . . . . Relay Couplers Released . | . . . . . . . . . . . . . . . . . . . . . . . . Fabnet Peak Effective % . | . . . . . . . . . . . . . . . . . . . . . . . . Robots Rewired . | . . . . . . . . . . . . . . . . . . . . . . . . Allies Hacked 1 | . . . . . . . . . . . . . . . . . . . . . . . 1 Hacks Repelled . | . . . . . . . . . . . . . . . . . . . . . . . . Allies | -11 -10 -10 -9 -8 -7 -7 -7 -7 -7 -5 -5 -5 -5 -4 -4 -4 -4 -4 -3 -3 -3 -2 -1 -------- Run | Yrd Mat Min Mat Mat Fac Was Fac Sto Rec Fac Upp Upp Zhi Pro Fac Upp Upp War Pro Res Tes Res Acc Total Allies 1 | . . . . . . . . . . . . . . . . . . . . . . . 1 Largest Group 1 | . . . . . . . . . . . . . . . . . . . . . . . 1 Highest-Rated Group 45 | . . . . . . . . . . . . . . . . . . . . . . . 45 Highest-Rated Ally 45 | . . . . . . . . . . . . . . . . . . . . . . . 45 Total Orders . | . . . . . . . . . . . . . . . . . . . . . . . . Ally Attacks . | . . . . . . . . . . . . . . . . . . . . . . . . Total Damage . | . . . . . . . . . . . . . . . . . . . . . . . . Kills . | . . . . . . . . . . . . . . . . . . . . . . . . Allies Corrupted . | . . . . . . . . . . . . . . . . . . . . . . . . Allies Melted . | . . . . . . . . . . . . . . . . . . . . . . . . Intel | -11 -10 -10 -9 -8 -7 -7 -7 -7 -7 -5 -5 -5 -5 -4 -4 -4 -4 -4 -3 -3 -3 -2 -1 ------- Run | Yrd Mat Min Mat Mat Fac Was Fac Sto Rec Fac Upp Upp Zhi Pro Fac Upp Upp War Pro Res Tes Res Acc Robot Analysis Total 9 | . 1 . . . . . . . 4 . . . 4 . . . . . . . . . . Derelict Logs Recovered 7 | . . 1 . . . . . . . . 1 1 . 1 . 2 1 . . . . . . Drone Launches 3 | . . . . . . . . . . 3 . . . . . . . . . . . . . Drone Recoveries 1 | . . . . . . . . . . 1 . . . . . . . . . . . . . Exploration | -11 -10 -10 -9 -8 -7 -7 -7 -7 -7 -5 -5 -5 -5 -4 -4 -4 -4 -4 -3 -3 -3 -2 -1 ------------- Run | Yrd Mat Min Mat Mat Fac Was Fac Sto Rec Fac Upp Upp Zhi Pro Fac Upp Upp War Pro Res Tes Res Acc Turns Passed 6074 | . 434 365 563 564 575 23 31 385 657 362 310 427 158 55 56 85 112 136 194 60 107 121 294 Spaces Moved 7612 | 1 247 179 242 228 548 75 114 215 542 311 549 659 182 190 207 349 448 585 356 151 188 291 755 Core 1 | . . . . . 1 . . . . . . . . . . . . . . . . . . Treads 75 | . . . . . 1 . . 69 5 . . . . . . . . . . . . . . Legs 255 | 1 191 . . . . . . 21 . . . . 42 . . . . . . . . . . Wheels 1655 | . 56 179 242 228 210 . . 5 528 207 . . . . . . . . . . . . . Hover . | . . . . . . . . . . . . . . . . . . . . . . . . Flight 5626 | . . . . . 336 75 114 120 9 104 549 659 140 190 207 349 448 585 356 151 188 291 755 Fastest Speed 11 | 120 120 130 130 175 23 26 26 26 45 39 39 39 22 22 20 11 20 11 11 25 29 22 24 Average Speed 59 | 120 122 172 160 175 87 27 27 98 104 87 39 39 60 22 21 20 20 21 26 30 39 37 30 Slowest Speed 1400 | 120 130 175 175 175 1400 29 29 240 160 130 39 39 260 22 22 22 22 22 40 45 45 39 40 Overloaded Moves 95 | . . . . . . . . . . . . . . . . 12 . 14 3 . . . 66 Propulsion Burnouts . | . . . . . . . . . . . . . . . . . . . . . . . . Robots Hopped 40 | . . . . . 3 2 1 4 . 1 1 . . . . . . 2 1 . 3 5 17 Cave-ins Triggered . | . . . . . . . . . . . . . . . . . . . . . . . . Exploration Rate (%) 42 | 2 43 43 33 28 24 73 4 38 92 15 73 81 63 49 6 60 73 91 55 6 37 11 24 Regions Visited 23 Branch Regions 12 Pre-discovered Areas 5 | . . . . . . . . . . . 1 . 3 . . 1 . . . . . . . Known Exits Taken 16 | . . . . 1 . . . 1 1 1 1 1 1 1 1 1 1 1 1 1 1 1 . Unknown Exits Taken 5 | 1 1 1 1 . . . 1 . . . . . . . . . . . . . . . . Scrap Searched 8 | . . 2 . . . . . . . . 1 1 . . . 2 2 . . . . . . Spaces Dug 77 | . 4 11 . 2 . . . 5 . 2 . . . . 1 2 2 . 14 4 2 . 28 Terrain Destroyed 243 | . 15 11 6 2 5 . . 29 . 2 31 . . 33 1 2 2 . 67 4 2 . 31 Melee 16 | . . . . 2 . . . 5 . 2 . . . . 1 2 1 . 3 . . . . Projectile 25 | . . . . . . . . 2 . . . . . . . . 1 . 1 4 2 . 15 AOE 202 | . 15 11 6 . 5 . . 22 . . 31 . . 33 . . . . 63 . . . 16 Terrain Rammed . | . . . . . . . . . . . . . . . . . . . . . . . . Walls Destroyed . | . . . . . . . . . . . . . . . . . . . . . . . . Machines Disabled . | . . . . . . . . . . . . . . . . . . . . . . . . Actions | -11 -10 -10 -9 -8 -7 -7 -7 -7 -7 -5 -5 -5 -5 -4 -4 -4 -4 -4 -3 -3 -3 -2 -1 --------- Run | Yrd Mat Min Mat Mat Fac Was Fac Sto Rec Fac Upp Upp Zhi Pro Fac Upp Upp War Pro Res Tes Res Acc Total 8748 | . 343 222 358 344 629 73 112 308 623 365 634 824 213 196 214 359 463 590 430 160 213 297 778 Wait 628 | . 47 27 58 68 8 . . 27 50 12 74 152 1 . . 4 12 . 48 . 16 8 16 Move 7512 | . 246 178 241 227 542 71 111 206 541 308 546 658 181 189 206 348 447 581 353 150 181 280 721 Hop 37 | . . . . . 3 1 1 4 . 1 1 . . . . . . 1 1 . 3 5 16 Pick Up 53 | . 2 2 8 7 13 . . 1 3 3 1 4 2 . 1 2 . 1 . 1 2 . . Fast Attach 64 | . 1 3 7 1 1 1 . 10 10 4 2 1 10 . 2 . . 3 1 1 2 1 3 Attach 63 | . 4 1 4 6 12 . . 7 3 8 1 . . . 2 . 1 1 3 3 3 3 1 Detach 30 | . 2 1 3 1 1 . . 6 3 4 1 . . . 1 . 1 . 2 1 3 . . Swap 20 | . 3 . 2 5 4 . . 1 . . 1 1 . 1 1 1 . . . . . . . Drop 45 | . 4 . . . 16 . . 1 6 1 . 4 8 . . 2 . 3 . . . . . Fire 198 | . 34 7 22 27 11 . . 33 7 2 7 . . 4 . . 1 . 15 4 3 . 21 Melee 79 | . . 3 13 2 . . . 12 . 22 . 4 11 1 1 2 1 . 7 . . . . Ram . | . . . . . . . . . . . . . . . . . . . . . . . . Kick . | . . . . . . . . . . . . . . . . . . . . . . . . Crush . | . . . . . . . . . . . . . . . . . . . . . . . . Escape Stasis 18 | . . . . . 18 . . . . . . . . . . . . . . . . . . Rewire . | . . . . . . . . . . . . . . . . . . . . . . . . Trap 1 | . . . . . . . . . . . . . . 1 . . . . . . . . . Miscellaneous . | . . . . . . . . . . . . . . . . . . . . . . . . Route ------- -11/Scrapyard -10/Materials (discovered 2 exits: *Mat / [*Min]) -10/Mines -9/Materials -8/Materials -7/Factory -7/Waste -7/Factory -7/Storage -7/Recycling -5/Factory -5/Upper Caves -5/Upper Caves (discovered 2 exits: *Fac / *Zhi) -5/Zhirov -4/Proximity Caves -4/Factory -4/Upper Caves -4/Upper Caves (discovered 2 exits: *Res / *War) -4/Warlord -3/Proximity Caves -3/Research (discovered 2 exits: Arm / *Tes) -3/Testing -2/Research -1/Access (discovered 2 exits: *Sur / Com) To Epsilon Eridani History --------- Turn | Location | Event 1 | -11/Scrapyard | Discovered new exit (range 0) 1 | -11/Scrapyard | Entered Materials 85 | -10/Materials | Discovered new exit (range 11) 145 | -10/Materials | Discovered new exit (range 14) 309 | -10/Materials | Build established: Mutant 435 | -10/Materials | Entered Mines 471 | -10/Mines | Core integrity fell below 50% 501 | -10/Mines | Lost 3 parts (1p1n1w) 698 | -10/Mines | YI-UF0 nonchalantly dropped a Grenade Launcher on the ground 714 | -10/Mines | Discovered new exit (range 5) 718 | -10/Mines | Learned Materials non-interactive machine intel 800 | -10/Mines | Entered Materials 800 | -9/Materials | Evolved 2 slots: Utility x2 801 | -9/Materials | Loaded intel: 40 non-interactive machine locations 1171 | -9/Materials | Build established: Scavenger-Mutant 1337 | -9/Materials | Discovered new exit (range 15) 1363 | -9/Materials | Entered another Materials area 1363 | -8/Materials | Evolved 2 slots: Propulsion x2 1393 | -8/Materials | Lost 3 parts (1u2w) 1912 | -8/Materials | Discovered new exit (range 5) 1927 | -8/Materials | Identified exit to Factory 1927 | -8/Materials | Entered Factory 1927 | -7/Factory | Evolved 2 slots: Propulsion x1, Utility x1 2373 | -7/Factory | Lost 5 parts (1p3n1w) 2502 | -7/Factory | Sucked down chute 2502 | -7/Factory | Entered Waste 2512 | -7/Waste | Spotted C-40 Crusher 2513 | -7/Waste | Spotted C-40 Crusher 2516 | -7/Waste | Spotted C-40 Crusher 2516 | -7/Waste | Discovered new exit (range 16) 2516 | -7/Waste | Spotted C-40 Crusher 2516 | -7/Waste | Spotted C-40 Crusher 2525 | -7/Waste | Entered Factory 2555 | -7/Factory | Discovered new exit (range 4) 2556 | -7/Factory | Entered Storage 2633 | -7/Storage | Repaired Broken Exp. Cesium-ion Thruster? 2662 | -7/Storage | Lost 5 parts (1p3n1u) 2772 | -7/Storage | Core integrity fell below 50% 2804 | -7/Storage | Lost 3 parts (1p1n1u) 2886 | -7/Storage | Garrison activated, responded to threat 2903 | -7/Storage | Build established: Hacker-Mutant 2903 | -7/Storage | Identified exit to Recycling 2917 | -7/Storage | Lost 4 parts (1p2n1w) 2939 | -7/Storage | Used back door to open Recycling access 2941 | -7/Storage | Entered Recycling 3222 | -7/Recycling | Discovered new exit (range 9) 3256 | -7/Recycling | Identified exit to Factory 3598 | -7/Recycling | Entered Factory 3598 | -5/Factory | Evolved 4 slots: Propulsion x1, Utility x3 3793 | -5/Factory | Lost 7 parts (5n2u) 3929 | -5/Factory | Discovered new exit (range 17) 3959 | -5/Factory | Identified exit to Upper Caves 3960 | -5/Factory | Entered Upper Caves 3965 | -5/Upper Caves | Learned location of Warlord (-4) 4195 | -5/Upper Caves | Build established: Hacker-Scout 4219 | -5/Upper Caves | Discovered new exit (range 7) 4221 | -5/Upper Caves | Identified exit to Upper Caves 4270 | -5/Upper Caves | Entered another Upper Caves area 4281 | -5/Upper Caves | Discovered new exit (range 13) 4292 | -5/Upper Caves | Identified exit to Factory 4679 | -5/Upper Caves | Spotted B-75 Beast 4694 | -5/Upper Caves | Discovered new exit (range 9) 4696 | -5/Upper Caves | Identified exit to Zhirov 4697 | -5/Upper Caves | Entered Zhirov 4697 | -5/Zhirov | Discovered new exit (range 3) 4705 | -5/Zhirov | Met Zhirov 4714 | -5/Zhirov | Learned location of Quarantine (-2) 4714 | -5/Zhirov | Learned location of Testing (-3) 4714 | -5/Zhirov | Learned location of Command (-1) 4722 | -5/Zhirov | Zhirov requested help retrieving the SGEMP Prototype 4728 | -5/Zhirov | Found Alien Artifact 4728 | -5/Zhirov | Identified Integrated Dissipator 4728 | -5/Zhirov | Installed Integrated Dissipator, increased core heat dissipation (+20) 4742 | -5/Zhirov | Found Alien Artifact 4855 | -5/Zhirov | Identified exit to Proximity Caves 4855 | -5/Zhirov | Entered Proximity Caves 4857 | -4/Proximity Caves | Attracted the attention of an 0b10 checkpoint 4857 | -4/Proximity Caves | Learned 4 Research zone layouts 4877 | -4/Proximity Caves | Spotted B-86 Titan 4907 | -4/Proximity Caves | Discovered exit to Factory (range 13) 4910 | -4/Proximity Caves | Entered Factory 4910 | -4/Factory | Evolved 2 slots: Propulsion x1, Utility x1 4954 | -4/Factory | Discovered new exit (range 6) 4955 | -4/Factory | Identified exit to Upper Caves 4966 | -4/Factory | Entered Upper Caves 5017 | -4/Upper Caves | Encountered a Warlord checkpoint 5037 | -4/Upper Caves | Discovered new exit (range 5) 5039 | -4/Upper Caves | Identified exit to Upper Caves 5047 | -4/Upper Caves | Found Alien Artifact 5051 | -4/Upper Caves | Entered another Upper Caves area 5068 | -4/Upper Caves | Discovered new exit (range 10) 5070 | -4/Upper Caves | Identified exit to Research 5075 | -4/Upper Caves | Encountered a Warlord checkpoint 5094 | -4/Upper Caves | Attracted the attention of an 0b10 outpost 5117 | -4/Upper Caves | Learned Research emergency access door positions 5159 | -4/Upper Caves | Discovered new exit (range 9) 5162 | -4/Upper Caves | Identified exit to Warlord 5163 | -4/Upper Caves | Entered Warlord 5191 | -4/Warlord | Identified Core Expander 5191 | -4/Warlord | Installed Core Expander, added new Weapon slot 5203 | -4/Warlord | Visited the Vortex Lab 5212 | -4/Warlord | Warlord's base attacked by MAIN.C 5234 | -4/Warlord | Found Prototype Device 5234 | -4/Warlord | Identified Minesniffer Drone Bay 5280 | -4/Warlord | Met Warlord 5294 | -4/Warlord | Opened side exit 5298 | -4/Warlord | Discovered new exit (range 9) 5298 | -4/Warlord | Identified exit to Proximity Caves 5299 | -4/Warlord | Entered Proximity Caves 5359 | -3/Proximity Caves | Attracted the attention of an 0b10 checkpoint 5486 | -3/Proximity Caves | Discovered exit to Research (range 20) 5493 | -3/Proximity Caves | Entered Research 5493 | -3/Research | Evolved 2 slots: Propulsion x1, Utility x1 5494 | -3/Research | Identified exit to Armory 5515 | -3/Research | Lost 6 parts (1p3n2w) 5548 | -3/Research | Discovered new exit (range 14) 5553 | -3/Research | Identified exit to Testing 5553 | -3/Research | Entered Testing 5556 | -3/Testing | Protovariant out of control (PG-N0212CU650) 5556 | -3/Testing | Unleashed a protovariant (PG-N0212CU650) 5610 | -3/Testing | Identified exit to Research 5660 | -3/Testing | Entered Research 5660 | -2/Research | Warlord forces began assault on 0b10 5660 | -2/Research | Evolved 2 slots: Utility x2 5741 | -2/Research | Discovered new exit (range 17) 5770 | -2/Research | Research machine network offline 5781 | -2/Research | Identified exit to Access 5781 | -2/Research | Entered Access 5781 | -1/Access | Evolved 2 slots: Power x1, Utility x1 5868 | -1/Access | Identified exit to Command 5952 | -1/Access | Lost 4 allies 5989 | -1/Access | Spotted B-99 Colossus 5989 | -1/Access | Spotted B-99 Colossus 6021 | -1/Access | Lost 3 parts (1p1n1w) 6052 | -1/Access | Energy Cycler disabled 6063 | -1/Access | Search patrols dispatched 6073 | -1/Access | Discovered new exit (range 6) 6075 | -1/Access | Identified exit to Surface 6075 | *** | Escaped! Last Messages --------------- 06055_ Slug penetrates P-80 Master. 06055_ P-80 Master destroyed. 06055_ Penetrated by Slug. 06055_ Imp. Diametric Drive destroyed. 06055_ Slug penetrates Wall. 06056_ Acquired 65 matter. 06057_ Slug penetrates Wall. 06058_ Diametric Drive destroyed. 06058_ Penetrated by Slug. 06059_ Slug penetrates Wall. 06059_ Penetrated by Slug. 06060_ System corrupted: Component data lost. 06060_ Penetrated by Slug. 06063_ ALERT: Heightened foreign activity detected, multiple search patrols dispatched. 06065_ Slug penetrates Wall. 06068_ Penetrated by Slug. 06073_ The Access Shell folds into the floor. 06073_ EXIT=FOUND 06075_ EXIT=IDENTIFIED: SURFACE Map ----- +----------------------------------------------------+ | # #?????# #???????????? #? | | # #?????# #??????????? #? | | # ##########"""################## ## | | # | | ######### | | ????????# | | ????????# | | ????????############### ########## ###+##### | | ????????????# #????# #????????# # # | | ############# #????# #????????# # # | | = / #???? ????????# " " | | == ####### #??? ????????# " " | | ##+##"######" #?? ????????# " " | | ## #?# ????????# " | | ## #?# ???????# #"" " | | " "" ## #?# ???????# # " " | | ""T"" ## #?# ???????# # " " | | """ #####"#?#"""""""""???????# # " " | | % #???###??????????????????# # " " | | ! ! #????????????????????????# "## ## | | #"##########???????#""""""""""#?????# "## "# | | #??????????????# #?????# " # + | | #??????????????# #?????# "########## | | " #??????????????# #?????# "#######??# | | "" #??????????????# "" #?????# #??# | | T" !#??????????????# "@ #?????# #??? | | "" #??????????????# #?????# #??? | | " #??????????????# #?????# #??? | | #??????????????# #?????# #??? | | #?????????????## ##????# #??? | | /#############????# #????# #??? | | #????##"" ##????# #??? | | #?????#"" #?????# #??? | | ######### #?????#"" #?????# #??? | | #/ ?# #?????#T #?????# #??? | | # ?# #?????#"" #?????# ^ #??? | | # # #?????#"" #?????# #??? | | # # #######"" ####### % #### | | # + | | # # w | | # # ######################+############## | | ### ?# #?###########????????# ????????????? | | # ?# #?# ! #???###### ????????????? | | # ??# #?? #?? # ???????????? | | # ??# #???? #?? # ???????????? | | #####???# #?????? ?? # ??????????? | | #??????## ##?????##+###? " # ??????????? | | #??????# ####### # """ # ?????????? | | #??????# "" # """# ?????????? | | #??????# T" + " # ????????? | +----------------------------------------------------+ Best States ------------- Heat Dissipation 72 Energy Generation 39 Energy Capacity 315 Matter Stores 300 Matter Capacity 300 Sight Range 22 Robot Scan Range 16 Terrain Scan Density 10 ECM Strength 2 Jamming Range 16 Corruption Block 8 Armor Coverage 150 Propulsion Shielding 90 Evasion (%) 75 Targeting Accuracy 5 Recoil Reduction 4 Offensive Hacking 28 Defensive Hacking 24 Authchip Count 1 Item Schematics ----------------- Flak Gun | -7/Recycling | Hacked Adv. System Restoration Module | -7/Recycling | Hacked Assault Drone Bay | -5/Zhirov | Free Exp. Heat Sink | -5/Zhirov | Free Exp. Optical Array | -5/Zhirov | Free Imp. Arc Thrower | -5/Zhirov | Free Robot Schematics ------------------ None Fabricated ------------ Nothing Alien Tech Used ----------------- Integrated Dissipator Core Expander Achievements -------------- Maximum Efficiency Origins Rampage Challenges ------------ None Game ------ Seed ServoNetworkMinigun Manual? 0 Play Time 02:27:29 Cumulative 81.3 hours Start 2024.08.19 @ 16:24:28 End 2024.08.23 @ 09:52:11 Sessions 3 Manual Loads 0 Difficulty Rogue Special Mode None Game No. 99 Rogue 99 Adventurer 0 Explorer 0 Win Type 0 Total 2 Types 2/0/0/0/0/0/0/0/0 Lore% 30 Gallery% 50 Achievement% 42 Wizard Run 0 Options --------- Layout 1 ASCII 0 Keyboard 0 Movement Mouse Keybinds 0 Fullscreen 2 Font 48/Smallcaps Map View 50x35 Zoom Use 0% Tactical HUD 1 Map Filters SHIFT_HUE(280) Filters LOW_CONTRAST(13,24,33)|SHIFT_HUE(80) Steam 1 RUN: 745d2c7d-4973-44d5-b343-b80cdf76881b